[Event "46th GRE-chT Premier 2018"]
[Site "Rio Achaia"]
[Date "2018.07.10"]
[Round "1"]
[White "Kelires, Andreas"]
[Black "Lekic, Dusan"]
[Result "1-0"]
[ECO "D11"]
[WhiteElo "2530"]
[BlackElo "2356"]
[Annotator "ChessBase"]
[PlyCount "97"]
[EventDate "2018.07.10"]
[EventType "team-tourn"]
[EventCountry "GRE"]
[SourceTitle "playchess.com"]
[Source "ChessBase"]
[SourceQuality "1"]
[TimeControl "40/5400+30:1800+30"]

1. d4 {[%emt 0:00:00]} d5 {[%emt 0:00:00]} 2. c4 {[%emt 0:00:00]} c6 {[%emt 0:00:00]} 3. Nf3 {[%emt 0:00:00]} Nf6 {[%emt 0:00:00]} 4. g3 {[%emt 0:00:00]} dxc4 {[%emt 0:01:41]} 5. Bg2 {[%emt 0:00:25]} b5 {[%emt 0:02:21]} 6. Ne5 {[%emt 0:01:12]} Bb7 {[%emt 0:02:17]} 7. O-O {[%emt 0:00:12]} e6 {[%emt 0:03:01]} 8. b3 {[%emt 0:00:51]} cxb3 {[%emt 0:01:46]} 9. axb3 {[%emt 0:00:05]} Be7 {[%emt 0:01:44]} 10. Bb2 {[%emt 0:07:16]} O-O {[%emt 0:03:42]} 11. Qc2 {[%emt 0:15:43]} Qb6 {[%emt 0:25:02]} 12. Nd2 {[%emt 0:11:19]} Rc8 {[%emt 0:07:07]} 13. Ne4 {[%emt 0:12:34]} Nfd7 {[%emt 0:01:02]} 14. Rfd1 {[%emt 0:20:46]} f5 {[%emt 0:17:36]} 15. Nxd7 {[%emt 0:06:03]} Nxd7 {[%emt 0:00:13]} 16. Nc5 {[%emt 0:00:56]} Nxc5 {[%emt 0:08:48]} 17. dxc5 {[%emt 0:00:04]} Qc7 {[%emt 0:00:55]} 18. e4 {[%emt 0:00:03]} Rf8 {[%emt 0:01:58]} 19. f4 {[%emt 0:01:10]} a5 {[%emt 0:01:35]} 20. Be5 {[%emt 0:00:51]} Qc8 {[%emt 0:00:34]} 21. Bd6 {[%emt 0:03:38]} Bxd6 {[%emt 0:01:03]} 22. Rxd6 {[%emt 0:00:07]} Rd8 {[%emt 0:01:06]} 23. e5 {[%emt 0:04:01]} Rxd6 {[%emt 0:00:35]} 24. exd6 {[%emt 0:00:07]} Qd8 {[%emt 0:01:13]} 25. Re1 {[%emt 0:01:45]} Kf7 {[%emt 0:01:46]} 26. Re5 {[%emt 0:04:13]} a4 {[%emt 0:02:11]} 27. bxa4 {[%emt 0:00:11]} Rxa4 {[%emt 0:00:15]} 28. h4 {[%emt 0:01:41]} Qd7 {[%emt 0:04:54]} 29. h5 {[%emt 0:01:46]} Bc8 {[%emt 0:01:34]} 30. Qb3 {[%emt 0:02:13]} Kf8 {[%emt 0:01:05]} 31. Qf3 {[%emt 0:01:57]} Ra1+ {[%emt 0:01:00]} 32. Kh2 {[%emt 0:02:07]} Qf7 {[%emt 0:00:39]} 33. g4 {[%emt 0:00:50]} fxg4 {[%emt 0:00:40]} 34. Qxg4 {[%emt 0:00:11]} Bd7 {[%emt 0:00:59]} 35. h6 {[%emt 0:01:39]} gxh6 {[%emt 0:02:13]} 36. Qh4 {[%emt 0:00:05]} Kg7 {[%emt 0:04:08]} 37. f5 {[%emt 0:00:12]} Qf6 {[%emt 0:00:42]} 38. Qg3+ {[%emt 0:00:14]} Kf7 {[%emt 0:00:13]} 39. fxe6+ {[%emt 0:00:31]} Bxe6 {[%emt 0:00:14]} 40. Re2 {[%emt 0:00:00]} Ra2 {[%emt 0:00:00]} 41. Rxa2 {[%emt 0:05:26]} Bxa2 {[%emt 0:01:34]} 42. Bxc6 {[%emt 0:00:23]} Qd4 {[%emt 0:05:24]} 43. Qf3+ {[%emt 0:06:10]} Kg7 {[%emt 0:01:04]} 44. Qg2+ {[%emt 0:01:34]} Kf6 {[%emt 0:00:07]} 45. Qf1+ {[%emt 0:06:38]} Kg7 {[%emt 0:01:25]} 46. Qg1+ {[%emt 0:06:27]} Qxg1+ {[%emt 0:00:22]} 47. Kxg1 {[%emt 0:00:03]} Kf6 {[%emt 0:00:12]} 48. Bxb5 {[%emt 0:01:36]} Ke6 {[%emt 0:00:44]} 49. Bc6 {[%emt 0:01:10] Kd5} 1-0

[Event "46th GRE-chT Premier 2018"]
[Site "Rio Achaia"]
[Date "2018.07.10"]
[Round "1"]
[White "Vlachos, Anatole"]
[Black "Abelakiotis, Stavros"]
[Result "1-0"]
[ECO "A04"]
[WhiteElo "2428"]
[BlackElo "2029"]
[Annotator "NA"]
[PlyCount "89"]
[EventDate "2018.07.10"]
[EventType "team-tourn"]
[EventCountry "GRE"]
[SourceTitle "playchess.com"]
[Source "ChessBase"]
[SourceQuality "1"]
[TimeControl "40/5400+30:1800+30"]

1. Nf3 {[%emt 0:00:00]} c5 {[%emt 0:00:14]} 2. g3 {[%emt 0:00:00]} b6 {[%emt 0:00:48]} 3. Bg2 {[%emt 0:00:00]} Bb7 {[%emt 0:00:09]} 4. O-O {[%emt 0:00:00]} Nf6 {[%emt 0:00:35]} 5. c4 {[%emt 0:00:07]} e6 {[%emt 0:00:22]} 6. b3 {[%emt 0:01:00]} Be7 {[%emt 0:00:58]} 7. Bb2 {[%emt 0:00:07]} O-O {[%emt 0:00:35]} 8. Nc3 {[%emt 0:00:42]} d5 {[%emt 0:06:52]} 9. Ne5 {[%emt 0:21:16]} Nbd7 {[%emt 0:23:25]} 10. d4 {[%emt 0:00:17]} cxd4 {[%emt 0:06:31]} 11. Qxd4 {[%emt 0:00:17]} Bc5 {[%emt 0:16:59]} 12. Qf4 {[%emt 0:00:39]} Bd6 {[%emt 0:03:56]} 13. Nxf7 {[%emt 0:02:53]} Bxf4 {[%emt 0:04:37]} 14. Nxd8 {[%emt 0:00:12]} Raxd8 {[%emt 0:02:16]} 15. gxf4 {[%emt 0:00:02]} Nc5 {[%emt 0:05:08]} 16. b4 {[%emt 0:05:19]} Nce4 {[%emt 0:00:46]} 17. Nxe4 {[%emt 0:02:45]} Nxe4 {[%emt 0:00:58]} 18. cxd5 {[%emt 0:10:18]} Bxd5 {[%emt 0:05:47]} 19. e3 {[%emt 0:00:19]} Rc8 {[%emt 0:04:59]} 20. Rac1 {[%emt 0:07:51]} Nf6 {[%emt 0:03:35]} 21. Bxf6 {[%emt 0:05:26]} Bxg2 {[%emt 0:02:21]} 22. Kxg2 {[%emt 0:00:08]} gxf6 {[%emt 0:00:09]} 23. Rfd1 {[%emt 0:00:06]} Rxc1 {[%emt 0:02:25]} 24. Rxc1 {[%emt 0:00:02]} Rf7 {[%emt 0:00:14]} 25. Rc6 {[%emt 0:01:29]} Re7 {[%emt 0:02:03]} 26. f5 {[%emt 0:00:42]} exf5 {[%emt 0:00:11]} 27. Rxf6 {[%emt 0:00:11]} Re5 {[%emt 0:00:38]} 28. Kf3 {[%emt 0:02:11]} Kg7 {[%emt 0:01:11]} 29. Rc6 {[%emt 0:00:54]} Rb5 {[%emt 0:00:23]} 30. a3 {[%emt 0:01:34]} a5 {[%emt 0:02:40]} 31. Kf4 {[%emt 0:02:58]} axb4 {[%emt 0:00:13]} 32. axb4 {[%emt 0:00:01]} Rxb4+ {[%emt 0:03:16]} 33. Kxf5 {[%emt 0:00:17]} Rb2 {[%emt 0:00:23]} 34. f4 {[%emt 0:00:21]} b5 {[%emt 0:00:46]} 35. Rc7+ {[%emt 0:03:58]} Kh6 {[%emt 0:00:14]} 36. e4 {[%emt 0:00:44]} Rxh2 {[%emt 0:00:50]} 37. e5 {[%emt 0:00:02]} b4 {[%emt 0:00:27]} 38. Rb7 {[%emt 0:02:02]} Rb2 {[%emt 0:00:34]} 39. e6 {[%emt 0:00:10]} b3 {[%emt 0:00:24]} 40. e7 {[%emt 0:00:00]} Re2 {[%emt 0:00:00]} 41. Kf6 {[%emt 0:00:26]} b2 {[%emt 0:04:53]} 42. Kf7 {[%emt 0:02:34]} Kh5 {[%emt 0:02:28]} 43. e8=Q {[%emt 0:00:22]} Rxe8 {[%emt 0:00:09]} 44. Kxe8 {[%emt 0:00:03]} Kg4 {[%emt 0:00:09]} 45. Rxb2 {[%emt 0:00:05]} 1-0

[Event "46th GRE-chT Premier 2018"]
[Site "Rio Achaia"]
[Date "2018.07.10"]
[Round "1"]
[White "Tsolakidou, Stavroula"]
[Black "Petraki, Evaggelia"]
[Result "1-0"]
[ECO "A05"]
[WhiteElo "2423"]
[BlackElo "1814"]
[Annotator "NA"]
[PlyCount "59"]
[EventDate "2018.07.10"]
[EventType "team-tourn"]
[EventCountry "GRE"]
[SourceTitle "playchess.com"]
[Source "ChessBase"]
[SourceQuality "1"]
[TimeControl "40/5400+30:1800+30"]

1. Nf3 {[%emt 0:00:00]} Nf6 {[%emt 0:00:00]} 2. c4 {[%emt 0:00:00]} d6 {[%emt 0:00:00]} 3. Nc3 {[%emt 0:00:22]} e5 {[%emt 0:00:19]} 4. d4 {[%emt 0:00:22]} Nbd7 {[%emt 0:00:17]} 5. Bg5 {[%emt 0:00:13]} Be7 {[%emt 0:00:52]} 6. e3 {[%emt 0:00:21]} c6 {[%emt 0:03:15]} 7. Be2 {[%emt 0:07:32]} Qc7 {[%emt 0:01:32]} 8. Qc2 {[%emt 0:01:09]} a6 {[%emt 0:03:42]} 9. Rc1 {[%emt 0:08:05]} O-O {[%emt 0:06:55]} 10. O-O {[%emt 0:01:51]} Re8 {[%emt 0:01:09]} 11. Rfd1 {[%emt 0:02:43]} b6 {[%emt 0:09:03]} 12. h3 {[%emt 0:16:06]} Bb7 {[%emt 0:02:33]} 13. Bh4 {[%emt 0:01:40]} Rac8 {[%emt 0:05:44]} 14. Bg3 {[%emt 0:10:50]} Bf8 {[%emt 0:03:37]} 15. b4 {[%emt 0:18:25]} g6 16. a3 Rcd8 {[%emt 0:36:47]} 17. c5 {[%emt 0:05:16]} bxc5 {[%emt 0:00:26]} 18. bxc5 {[%emt 0:00:45]} Qc8 {[%emt 0:12:53]} 19. cxd6 {[%emt 0:01:50]} Bxd6 {[%emt 0:00:13]} 20. dxe5 {[%emt 0:00:11]} Bxe5 {[%emt 0:00:35]} 21. Nxe5 {[%emt 0:01:33]} Nxe5 {[%emt 0:00:11]} 22. Rxd8 {[%emt 0:03:37]} Qxd8 {[%emt 0:00:08]} 23. Na4 {[%emt 0:00:55]} Nfd7 {[%emt 0:01:06]} 24. f4 {[%emt 0:01:13]} Nb6 {[%emt 0:02:52]} 25. Nxb6 {[%emt 0:04:44]} Qxb6 {[%emt 0:00:20]} 26. fxe5 {[%emt 0:00:04]} Qxe3+ {[%emt 0:00:10]} 27. Kh2 {[%emt 0:00:05]} Qxa3 {[%emt 0:01:55]} 28. Rf1 {[%emt 0:00:06]} Re7 {[%emt 0:04:08]} 29. Bc4 {[%emt 0:03:01]} a5 {[%emt 0:02:32]} 30. Qf2 {[%emt 0:00:21]} 1-0

[Event "46th GRE-chT Premier 2018"]
[Site "Rio Achaia"]
[Date "2018.07.10"]
[Round "1"]
[White "Souleidis, Georgios"]
[Black "Panagiotakopoulos, Gerasimos"]
[Result "1-0"]
[ECO "B50"]
[WhiteElo "2415"]
[BlackElo "2165"]
[Annotator "NA"]
[PlyCount "55"]
[EventDate "2018.07.10"]
[EventType "team-tourn"]
[EventCountry "GRE"]
[SourceTitle "playchess.com"]
[Source "ChessBase"]
[SourceQuality "1"]
[TimeControl "40/5400+30:1800+30"]

1. e4 {[%emt 0:00:00]} c5 {[%emt 0:00:00]} 2. Nf3 {[%emt 0:00:00]} d6 {[%emt 0:00:00]} 3. Bc4 {[%emt 0:00:00]} Nc6 {[%emt 0:02:10]} 4. O-O {[%emt 0:00:20]} Nf6 {[%emt 0:01:09]} 5. d3 {[%emt 0:00:06]} Bg4 {[%emt 0:02:38]} 6. c3 {[%emt 0:02:29]} e6 {[%emt 0:00:42]} 7. h3 {[%emt 0:03:47]} Bh5 {[%emt 0:05:28]} 8. Nbd2 {[%emt 0:01:30]} Be7 {[%emt 0:05:06]} 9. Bb3 {[%emt 0:00:30]} O-O {[%emt 0:00:22]} 10. g4 {[%emt 0:11:05]} Bg6 {[%emt 0:00:16]} 11. Nh4 {[%emt 0:00:14]} d5 {[%emt 0:07:34]} 12. Qe2 {[%emt 0:11:48]} b5 {[%emt 0:21:03]} 13. Bc2 {[%emt 0:02:57]} e5 {[%emt 0:02:40]} 14. Ndf3 {[%emt 0:06:41]} dxe4 {[%emt 0:15:52]} 15. dxe4 {[%emt 0:01:08]} c4 {[%emt 0:00:04]} 16. Kh1 {[%emt 0:08:30]} Nd7 {[%emt 0:04:38]} 17. Nf5 {[%emt 0:00:39]} Nc5 {[%emt 0:03:16]} 18. Rd1 {[%emt 0:02:17]} Qc7 {[%emt 0:01:07]} 19. Be3 {[%emt 0:05:47]} Rfd8 {[%emt 0:02:55]} 20. Rd5 {[%emt 0:04:46]} Bxf5 {[%emt 0:01:18]} 21. gxf5 {[%emt 0:00:39]} Rxd5 {[%emt 0:01:22]} 22. exd5 {[%emt 0:01:28]} Na5 {[%emt 0:01:13]} 23. Rg1 {[%emt 0:08:58]} f6 {[%emt 0:01:31]} 24. b4 {[%emt 0:02:41]} cxb3 {[%emt 0:00:15]} 25. axb3 {[%emt 0:00:02]} Ncxb3 {[%emt 0:04:00]} 26. Qxb5 {[%emt 0:13:08]} Qxc3 {[%emt 0:00:18]} 27. Bxb3 {[%emt 0:01:18]} Nxb3 {[%emt 0:00:11]} 28. d6 {[%emt 0:00:46]} 1-0

[Event "46th GRE-chT Premier 2018"]
[Site "Rio Achaia"]
[Date "2018.07.10"]
[Round "1"]
[White "Kanakaris, Georgios"]
[Black "Papaioannou, Ioannis"]
[Result "1/2-1/2"]
[ECO "A05"]
[WhiteElo "2409"]
[BlackElo "2647"]
[Annotator "ChessBase"]
[PlyCount "128"]
[EventDate "2018.07.10"]
[EventType "team-tourn"]
[EventCountry "GRE"]
[SourceTitle "playchess.com"]
[Source "ChessBase"]
[SourceQuality "1"]
[TimeControl "40/5400+30:1800+30"]

1. Nf3 {[%emt 0:00:00]} Nf6 {[%emt 0:00:04]} 2. c4 {[%emt 0:00:00]} e6 {[%emt 0:00:07]} 3. e3 {[%emt 0:00:47]} b6 {[%emt 0:00:52]} 4. b3 {[%emt 0:00:42]} g6 {[%emt 0:01:01]} 5. Bb2 {[%emt 0:04:49]} Bg7 {[%emt 0:00:07]} 6. Be2 {[%emt 0:00:22]} O-O {[%emt 0:00:38]} 7. O-O {[%emt 0:00:20]} Bb7 {[%emt 0:00:06]} 8. d4 {[%emt 0:02:56]} d5 {[%emt 0:01:47]} 9. Nc3 {[%emt 0:01:51]} Nbd7 {[%emt 0:01:56]} 10. Rc1 {[%emt 0:05:59]} c5 {[%emt 0:06:57]} 11. cxd5 {[%emt 0:16:31]} Nxd5 {[%emt 0:01:45]} 12. Nxd5 {[%emt 0:03:51]} Bxd5 {[%emt 0:00:07]} 13. Qd2 {[%emt 0:09:48]} Qe7 {[%emt 0:07:07]} 14. dxc5 {[%emt 0:01:45]} Bxb2 {[%emt 0:01:18]} 15. Qxb2 {[%emt 0:00:06]} Nxc5 {[%emt 0:00:05]} 16. Rfd1 {[%emt 0:08:14]} Rad8 {[%emt 0:02:12]} 17. Ne1 {[%emt 0:16:50]} a5 {[%emt 0:08:13]} 18. Bb5 {[%emt 0:02:01]} Qg5 {[%emt 0:02:30]} 19. Qe2 {[%emt 0:01:39]} h5 {[%emt 0:02:30]} 20. Bc4 {[%emt 0:05:20]} Bb7 {[%emt 0:00:56]} 21. Rxd8 {[%emt 0:02:03]} Rxd8 {[%emt 0:00:07]} 22. Rd1 h4 {[%emt 0:04:11]} 23. h3 {[%emt 0:02:59]} Qf6 {[%emt 0:01:10]} 24. Rxd8+ {[%emt 0:00:55]} Qxd8 {[%emt 0:00:07]} 25. Nf3 {[%emt 0:00:51]} Qf6 {[%emt 0:01:01]} 26. Nd4 {[%emt 0:02:12]} Ne4 {[%emt 0:01:45]} 27. Qc2 {[%emt 0:03:02]} Nc5 {[%emt 0:01:02]} 28. Qe2 {[%emt 0:01:08]} Kg7 {[%emt 0:01:28]} 29. a3 {[%emt 0:03:23]} e5 {[%emt 0:00:50]} 30. Nf3 {[%emt 0:00:18]} Bxf3 31. Qxf3 Qxf3 {[%emt 0:01:02]} 32. gxf3 {[%emt 0:00:34]} f5 {[%emt 0:01:21]} 33. b4 {[%emt 0:00:34]} axb4 {[%emt 0:01:07]} 34. axb4 {[%emt 0:00:04]} Nb7 {[%emt 0:00:57]} 35. Kf1 {[%emt 0:01:28]} Nd6 {[%emt 0:00:11]} 36. Bd5 {[%emt 0:01:35]} g5 {[%emt 0:02:00]} 37. Ke2 {[%emt 0:00:40]} Kf6 {[%emt 0:00:36]} 38. Bc6 {[%emt 0:01:35]} Ke6 39. e4 f4 {[%emt 0:04:52]} 40. Kd3 {[%emt 0:00:00]} Ke7 {[%emt 0:00:00]} 41. Ke2 {[%emt 0:15:46]} Kd8 {[%emt 0:02:13]} 42. Ba4 {[%emt 0:02:09]} Kc7 {[%emt 0:00:15]} 43. Ke1 {[%emt 0:01:33]} Nc8 {[%emt 0:04:32]} 44. Kd2 {[%emt 0:01:34]} Nd6 {[%emt 0:02:42]} 45. Ke2 {[%emt 0:01:43]} Kd8 {[%emt 0:02:33]} 46. Bc6 {[%emt 0:00:20]} Ke7 {[%emt 0:00:45]} 47. Ke1 {[%emt 0:01:50]} Kf7 {[%emt 0:02:18]} 48. Bd7 {[%emt 0:00:23]} Kf6 {[%emt 0:00:32]} 49. Ke2 {[%emt 0:01:46]} Ke7 {[%emt 0:00:13]} 50. Bc6 {[%emt 0:00:46]} Nc8 {[%emt 0:00:36]} 51. Kd3 {[%emt 0:03:18]} Na7 {[%emt 0:00:53]} 52. Ba4 {[%emt 0:00:16]} b5 {[%emt 0:00:51]} 53. Bd1 {[%emt 0:00:08]} Nc6 {[%emt 0:00:07]} 54. Kc3 {[%emt 0:00:02]} Nd4 {[%emt 0:00:07]} 55. Kd3 {[%emt 0:00:21]} Kd6 {[%emt 0:00:56]} 56. Be2 {[%emt 0:01:15]} Kc6 {[%emt 0:01:09]} 57. Bd1 {[%emt 0:00:18]} Kb6 {[%emt 0:07:14]} 58. Be2 {[%emt 0:00:25]} Nc6 {[%emt 0:00:20]} 59. Kc3 {[%emt 0:00:03]} Nd8 {[%emt 0:00:34]} 60. Kd3 {[%emt 0:00:41]} Ne6 {[%emt 0:00:50]} 61. Bf1 {[%emt 0:00:31]} Ka6 {[%emt 0:00:23]} 62. Be2 {[%emt 0:01:08]} Kb6 {[%emt 0:05:28]} 63. Bf1 {[%emt 0:00:34]} Nd4 {[%emt 0:01:10]} 64. Be2 {[%emt 0:00:03]} Nxe2 1/2-1/2

[Event "46th GRE-chT Premier 2018"]
[Site "Rio Achaia"]
[Date "2018.07.10"]
[Round "1"]
[White "Prince, Bajaj"]
[Black "Kuljasevic, Davorin"]
[Result "1/2-1/2"]
[ECO "C96"]
[WhiteElo "2404"]
[BlackElo "2545"]
[Annotator "RC"]
[PlyCount "68"]
[EventDate "2018.07.10"]
[EventType "team-tourn"]
[EventCountry "GRE"]
[SourceTitle "playchess.com"]
[Source "ChessBase"]
[SourceQuality "1"]
[TimeControl "40/5400+30:1800+30"]

1. e4 {[%emt 0:00:00]} e5 {[%emt 0:00:00]} 2. Nf3 {[%emt 0:00:00]} Nc6 {[%emt 0:00:00]} 3. Bb5 {[%emt 0:00:00]} a6 {[%emt 0:00:00]} 4. Ba4 {[%emt 0:00:00]} Nf6 {[%emt 0:00:13]} 5. O-O {[%emt 0:00:00]} Be7 {[%emt 0:00:17]} 6. Re1 {[%emt 0:00:08]} b5 {[%emt 0:00:13]} 7. Bb3 {[%emt 0:00:05]} d6 {[%emt 0:00:15]} 8. c3 {[%emt 0:00:06]} O-O {[%emt 0:00:12]} 9. h3 {[%emt 0:00:42]} Na5 {[%emt 0:00:40]} 10. Bc2 {[%emt 0:00:07]} c5 {[%emt 0:00:09]} 11. d4 {[%emt 0:00:06]} Nd7 {[%emt 0:00:27]} 12. Nbd2 {[%emt 0:00:30]} exd4 {[%emt 0:00:43]} 13. cxd4 {[%emt 0:00:07]} Nc6 {[%emt 0:00:17]} 14. d5 {[%emt 0:00:11]} Nce5 {[%emt 0:00:11]} 15. Nxe5 {[%emt 0:00:13]} Nxe5 {[%emt 0:00:06]} 16. f4 {[%emt 0:04:22]} Ng6 {[%emt 0:00:17]} 17. Nf3 {[%emt 0:00:05]} Bh4 {[%emt 0:00:44]} 18. Nxh4 {[%emt 0:04:40]} Qxh4 {[%emt 0:00:10]} 19. Rf1 {[%emt 0:00:29]} f5 {[%emt 0:04:41]} 20. a4 {[%emt 0:43:50]} fxe4 {[%emt 0:15:12]} 21. axb5 {[%emt 0:02:38]} Bxh3 {[%emt 0:26:25]} 22. gxh3 {[%emt 0:18:22]} Qg3+ {[%emt 0:00:28]} 23. Kh1 {[%emt 0:00:01]} Qxh3+ {[%emt 0:01:22]} 24. Kg1 {[%emt 0:01:27]} Qg3+ {[%emt 0:00:40]} 25. Kh1 {[%emt 0:00:02]} Qh3+ {[%emt 0:00:11]} 26. Kg1 {[%emt 0:00:16]} Qg3+ {[%emt 0:00:23]} 27. Kh1 {[%emt 0:00:54]} Rae8 {[%emt 0:25:46]} 28. Qe2 {[%emt 0:18:12]} e3 {[%emt 0:16:32]} 29. Bxg6 {[%emt 0:05:41]} hxg6 {[%emt 0:00:19]} 30. Rf3 {[%emt 0:00:51]} Qh4+ {[%emt 0:02:22]} 31. Qh2 {[%emt 0:00:09]} Qe1+ {[%emt 0:00:37]} 32. Qg1 {[%emt 0:00:02]} Qh4+ {[%emt 0:00:42]} 33. Qh2 {[%emt 0:00:03]} Qe1+ {[%emt 0:02:51]} 34. Qg1 {[%emt 0:00:02]} Qh4+ {[%emt 0:01:54]} 1/2-1/2

[Event "46th GRE-chT Premier 2018"]
[Site "Rio Achaia"]
[Date "2018.07.10"]
[Round "1"]
[White "Dochev, Dimitar"]
[Black "Tepelenis, Nikolaos"]
[Result "1-0"]
[ECO "C05"]
[WhiteElo "2399"]
[BlackElo "2079"]
[Annotator "NA"]
[PlyCount "45"]
[EventDate "2018.07.10"]
[EventType "team-tourn"]
[EventCountry "GRE"]
[SourceTitle "playchess.com"]
[Source "ChessBase"]
[SourceQuality "1"]
[TimeControl "40/5400+30:1800+30"]

1. e4 {[%emt 0:00:00]} e6 {[%emt 0:00:03]} 2. d4 {[%emt 0:08:27]} d5 {[%emt 0:00:15]} 3. Nd2 {[%emt 0:00:07]} Nf6 {[%emt 0:04:23]} 4. e5 {[%emt 0:00:18]} Nfd7 {[%emt 0:00:14]} 5. f4 {[%emt 0:04:58]} c5 {[%emt 0:00:12]} 6. Ngf3 {[%emt 0:00:41]} Nc6 {[%emt 0:01:41]} 7. Nb3 {[%emt 0:02:42]} c4 {[%emt 0:06:35]} 8. Nbd2 {[%emt 0:00:05]} b5 {[%emt 0:00:51]} 9. Be2 {[%emt 0:00:18]} Qa5 {[%emt 0:06:01]} 10. O-O {[%emt 0:12:21]} h5 {[%emt 0:10:49]} 11. Rf2 {[%emt 0:00:55]} Nb6 {[%emt 0:05:09]} 12. Nf1 {[%emt 0:01:19]} g6 {[%emt 0:01:05]} 13. Ne3 {[%emt 0:14:26]} Be7 {[%emt 0:03:53]} 14. Bd2 {[%emt 0:02:04]} Qa6 {[%emt 0:03:14]} 15. c3 {[%emt 0:08:04]} Bd7 {[%emt 0:01:08]} 16. Ng5 {[%emt 0:04:58]} Qb7 {[%emt 0:09:47]} 17. g3 {[%emt 0:20:39]} Rc8 {[%emt 0:05:13]} 18. Ng2 {[%emt 0:00:47]} Nd8 {[%emt 0:03:43]} 19. Nh4 {[%emt 0:00:17]} Na4 {[%emt 0:01:45]} 20. Qc2 {[%emt 0:00:13]} Bc6 {[%emt 0:09:55]} 21. b3 {[%emt 0:03:42]} Nb6 {[%emt 0:00:11]} 22. Nxg6 {[%emt 0:08:30]} fxg6 {[%emt 0:07:16]} 23. Qxg6+ {[%emt 0:00:06]} 1-0

[Event "46th GRE-chT Premier 2018"]
[Site "Rio Achaia"]
[Date "2018.07.10"]
[Round "1"]
[White "Szczepkowska, Karina"]
[Black "Juhasz, Barbara"]
[Result "1/2-1/2"]
[ECO "E70"]
[WhiteElo "2396"]
[BlackElo "2227"]
[Annotator "NA"]
[PlyCount "82"]
[EventDate "2018.07.10"]
[EventType "team-tourn"]
[EventCountry "GRE"]
[SourceTitle "playchess.com"]
[Source "ChessBase"]
[SourceQuality "1"]
[TimeControl "40/5400+30:1800+30"]

1. d4 {[%emt 0:00:00]} Nf6 {[%emt 0:00:00]} 2. c4 {[%emt 0:00:00]} g6 {[%emt 0:00:00]} 3. Nc3 {[%emt 0:00:00]} Bg7 {[%emt 0:00:00]} 4. e4 {[%emt 0:00:01]} d6 {[%emt 0:00:09]} 5. Bd3 {[%emt 0:00:45]} O-O {[%emt 0:00:18]} 6. Nge2 {[%emt 0:00:13]} Nc6 {[%emt 0:00:53]} 7. O-O {[%emt 0:01:23]} e5 {[%emt 0:00:43]} 8. d5 {[%emt 0:00:45]} Nd4 {[%emt 0:00:22]} 9. Rb1 {[%emt 0:00:09]} c5 {[%emt 0:06:42]} 10. dxc6 {[%emt 0:00:07]} bxc6 {[%emt 0:00:25]} 11. b4 {[%emt 0:00:04]} Be6 {[%emt 0:13:07]} 12. b5 {[%emt 0:09:28]} d5 {[%emt 0:10:49]} 13. cxd5 {[%emt 0:14:34]} cxd5 {[%emt 0:00:18]} 14. Bg5 {[%emt 0:00:43]} Nxe2+ {[%emt 0:17:38]} 15. Qxe2 {[%emt 0:00:30]} d4 {[%emt 0:00:05]} 16. Na4 {[%emt 0:08:00]} Rc8 {[%emt 0:13:26]} 17. b6 {[%emt 0:08:13]} axb6 {[%emt 0:00:38]} 18. Nxb6 {[%emt 0:00:09]} Rb8 {[%emt 0:04:51]} 19. Nc4 {[%emt 0:01:31]} Qc7 {[%emt 0:04:49]} 20. Rbc1 {[%emt 0:03:01]} Nh5 {[%emt 0:07:38]} 21. g3 {[%emt 0:00:49]} Rfc8 {[%emt 0:01:26]} 22. Bd2 {[%emt 0:01:34]} Qa7 {[%emt 0:05:48]} 23. Rc2 {[%emt 0:02:29]} Nf6 {[%emt 0:04:44]} 24. Kh1 {[%emt 0:06:48]} Nd7 {[%emt 0:02:41]} 25. f4 {[%emt 0:02:39]} exf4 {[%emt 0:01:51]} 26. gxf4 {[%emt 0:02:14]} Bh3 {[%emt 0:01:19]} 27. Rg1 {[%emt 0:01:01]} Qa8 {[%emt 0:00:57]} 28. Rg3 {[%emt 0:03:19]} Be6 {[%emt 0:00:36]} 29. Kg1 {[%emt 0:02:39]} Nc5 {[%emt 0:01:09]} 30. Nd6 {[%emt 0:02:45]} Rc6 {[%emt 0:00:34]} 31. f5 {[%emt 0:06:26]} Nxd3 {[%emt 0:00:36]} 32. Rxc6 {[%emt 0:00:29]} Qxc6 {[%emt 0:00:10]} 33. fxe6 {[%emt 0:00:39]} fxe6 {[%emt 0:00:46]} 34. Qxd3 {[%emt 0:01:11]} Qxd6 {[%emt 0:00:04]} 35. a4 {[%emt 0:00:36]} Be5 {[%emt 0:00:30]} 36. Rg2 {[%emt 0:00:44]} Qc6 {[%emt 0:01:15]} 37. a5 {[%emt 0:02:37]} Qa4 {[%emt 0:00:17]} 38. Rf2 {[%emt 0:00:31]} Qd1+ {[%emt 0:00:34]} 39. Rf1 {[%emt 0:00:15]} Qg4+ {[%emt 0:00:23]} 40. Kh1 {[%emt 0:00:00]} Qh4 {[%emt 0:00:00]} 41. h3 {[%emt 0:04:11]} Ra8 {[%emt 0:17:14]} 1/2-1/2

[Event "46th GRE-chT Premier 2018"]
[Site "Rio Achaia"]
[Date "2018.07.10"]
[Round "1"]
[White "Goumas, Georgios"]
[Black "Sandalakis, Nikolaos"]
[Result "1-0"]
[ECO "E46"]
[WhiteElo "2384"]
[BlackElo "2209"]
[Annotator "NA"]
[PlyCount "53"]
[EventDate "2018.07.10"]
[EventType "team-tourn"]
[EventCountry "GRE"]
[SourceTitle "playchess.com"]
[Source "ChessBase"]
[SourceQuality "1"]
[TimeControl "40/5400+30:1800+30"]

1. d4 {[%emt 0:00:00]} Nf6 {[%emt 0:00:00]} 2. c4 {[%emt 0:00:16]} e6 {[%emt 0:00:00]} 3. Nc3 {[%emt 0:00:13]} Bb4 {[%emt 0:00:32]} 4. e3 {[%emt 0:00:19]} O-O {[%emt 0:03:16]} 5. Nge2 {[%emt 0:00:49]} c6 {[%emt 0:02:26]} 6. a3 {[%emt 0:00:20]} Ba5 {[%emt 0:00:30]} 7. c5 {[%emt 0:00:23]} Re8 {[%emt 0:21:28]} 8. g3 {[%emt 0:01:28]} d6 {[%emt 0:09:32]} 9. cxd6 {[%emt 0:00:20]} Qxd6 {[%emt 0:00:33]} 10. b4 {[%emt 0:00:08]} Bb6 {[%emt 0:05:29]} 11. Bb2 {[%emt 0:08:58]} a5 {[%emt 0:08:25]} 12. b5 {[%emt 0:00:31]} cxb5 {[%emt 0:02:08]} 13. Bg2 {[%emt 0:00:15]} Bd7 {[%emt 0:02:44]} 14. O-O {[%emt 0:00:48]} Na6 {[%emt 0:16:21]} 15. e4 {[%emt 0:04:14]} Qb8 {[%emt 0:04:01]} 16. e5 {[%emt 0:03:28]} b4 {[%emt 0:02:28]} 17. exf6 {[%emt 0:04:09]} bxc3 {[%emt 0:00:04]} 18. Nxc3 {[%emt 0:00:58]} Bc6 {[%emt 0:06:14]} 19. d5 {[%emt 0:06:57]} exd5 {[%emt 0:04:25]} 20. Nxd5 {[%emt 0:00:33]} Bxd5 {[%emt 0:02:38]} 21. Bxd5 {[%emt 0:00:14]} Nc5 {[%emt 0:05:51]} 22. Bxf7+ {[%emt 0:04:50]} Kxf7 {[%emt 0:00:13]} 23. Qh5+ {[%emt 0:00:06]} Kg8 {[%emt 0:01:40]} 24. f7+ {[%emt 0:00:18]} Kh8 {[%emt 0:00:02]} 25. Qh6 {[%emt 0:03:51]} Re5 {[%emt 0:00:52]} 26. Bxe5 {[%emt 0:00:20]} Qxe5 {[%emt 0:00:08]} 27. Qxb6 {[%emt 0:00:10]} 1-0